[Event "*** Titled Tuesday Blitz"]
[Site "Chess.com"]
[Date "2021.02.09"]
[Round "1"]
[White "krzyzan94"]
[Black "Piotrek1979"]
[Result "1-0"]
[WhiteElo "2695"]
[BlackElo "2367"]
[TimeControl "180+1"]
[EndTime "10:08:19 PST"]
[Termination "krzyzan94 won on time"]

1. d4 {[%clk 0:02:56.9]} 1... Nf6 {[%clk 0:02:57]} 2. Nf3 {[%clk 0:02:53.8]}
2... g6 {[%clk 0:02:56.8]} 3. Bg5 {[%clk 0:02:51.2]} 3... Bg7 {[%clk 0:02:57.7]}
4. Nc3 {[%clk 0:02:50.6]} 4... c5 {[%clk 0:02:53.5]} 5. dxc5 {[%clk 0:02:42.3]}
5... Na6 {[%clk 0:02:11.8]} 6. Qd4 {[%clk 0:02:13.4]} 6... O-O {[%clk
0:02:10.5]} 7. O-O-O {[%clk 0:02:10.8]} 7... Qa5 {[%clk 0:01:58]} 8. Qh4 {[%clk
0:02:10.5]} 8... Nxc5 {[%clk 0:01:32.2]} 9. Bh6 {[%clk 0:02:09.6]} 9... d6
{[%clk 0:01:21.5]} 10. Bxg7 {[%clk 0:02:07.7]} 10... Kxg7 {[%clk 0:01:20.7]} 11.
Kb1 {[%clk 0:01:45.9]} 11... Be6 {[%clk 0:01:08.8]} 12. Nd4 {[%clk 0:01:42.4]}
12... b5 {[%clk 0:00:57.4]} 13. Nxe6+ {[%clk 0:01:25.7]} 13... fxe6 {[%clk
0:00:55.3]} 14. e3 {[%clk 0:01:17.8]} 14... b4 {[%clk 0:00:53.5]} 15. Ne2 {[%clk
0:01:17.2]} 15... Nfe4 {[%clk 0:00:47]} 16. f3 {[%clk 0:01:15.9]} 16... Nc3+
{[%clk 0:00:43.5]} 17. Nxc3 {[%clk 0:01:15.6]} 17... bxc3 {[%clk 0:00:44.4]} 18.
Qd4+ {[%clk 0:01:15.9]} 18... e5 {[%clk 0:00:41.3]} 19. Qxc3 {[%clk 0:01:16.4]}
19... Qxc3 {[%clk 0:00:41.1]} 20. bxc3 {[%clk 0:01:16.3]} 20... Rab8+ {[%clk
0:00:42]} 21. Kc1 {[%clk 0:01:13.4]} 21... Na4 {[%clk 0:00:40.7]} 22. c4 {[%clk
0:01:06]} 22... Nc3 {[%clk 0:00:37.5]} 23. Rd3 {[%clk 0:01:06]} 23... Nxa2+
{[%clk 0:00:23.9]} 24. Kd2 {[%clk 0:01:06.5]} 24... Rb1 {[%clk 0:00:21]} 25. Ra3
{[%clk 0:00:55.9]} 25... Ra1 {[%clk 0:00:14.5]} 26. Rxa7 {[%clk 0:00:53.9]}
26... Rb8 {[%clk 0:00:13.2]} 27. g3 {[%clk 0:00:27.8]} 27... Rbb1 {[%clk
0:00:11.6]} 28. Bg2 {[%clk 0:00:26.6]} 28... Rxh1 {[%clk 0:00:08.1]} 29. Bxh1
{[%clk 0:00:27.5]} 29... Rxh1 {[%clk 0:00:08.1]} 30. Rxa2 {[%clk 0:00:28.2]}
30... Rxh2+ {[%clk 0:00:09]} 31. Kd3 {[%clk 0:00:27.7]} 31... h5 {[%clk
0:00:09.3]} 32. Ra7 {[%clk 0:00:24.7]} 32... Kf6 {[%clk 0:00:08.7]} 33. Ra6
{[%clk 0:00:18.1]} 33... Kf7 {[%clk 0:00:07.5]} 34. c5 {[%clk 0:00:14.3]} 34...
dxc5 {[%clk 0:00:05.5]} 35. Rc6 {[%clk 0:00:13.9]} 35... Rg2 {[%clk 0:00:05.6]}
36. g4 {[%clk 0:00:13.1]} 36... h4 {[%clk 0:00:04.9]} 37. Rc8 {[%clk 0:00:09.1]}
37... Kg7 {[%clk 0:00:02.8]} 38. Ra8 {[%clk 0:00:06.3]} 38... h3 {[%clk
0:00:01.7]} 39. Ra1 {[%clk 0:00:06]} 39... h2 {[%clk 0:00:02.6]} 40. Rh1 {[%clk
0:00:06.5]} 40... Kf6 {[%clk 0:00:02.8]} 41. f4 {[%clk 0:00:05.7]} 41... exf4
{[%clk 0:00:01.8]} 42. exf4 {[%clk 0:00:06.6]} 42... g5 {[%clk 0:00:02.7]} 43.
Ke4 {[%clk 0:00:07.2]} 43... gxf4 {[%clk 0:00:02.2]} 44. Kxf4 {[%clk 0:00:08.1]}
44... e5+ {[%clk 0:00:03]} 45. Kf3 {[%clk 0:00:08.4]} 45... Rxc2 {[%clk
0:00:03.6]} 46. Kg3 {[%clk 0:00:08.7]} 46... Kg5 {[%clk 0:00:03.5]} 47. Rf1
{[%clk 0:00:09]} 47... Rc3+ {[%clk 0:00:03.4]} 48. Kxh2 {[%clk 0:00:08.5]} 48...
Kxg4 {[%clk 0:00:04.3]} 49. Rf8 {[%clk 0:00:07.5]} 49... e4 {[%clk 0:00:03.9]}
50. Kg2 {[%clk 0:00:07.8]} 50... e3 {[%clk 0:00:03.5]} 51. Kf1 {[%clk
0:00:07.1]} 51... Rc2 {[%clk 0:00:03.5]} 52. Ke1 {[%clk 0:00:06.8]} 52... c4
{[%clk 0:00:03.7]} 53. Rf7 {[%clk 0:00:05.6]} 53... Rd2 {[%clk 0:00:03]} 54. Rc7
{[%clk 0:00:05.3]} 54... Rc2 {[%clk 0:00:01.3]} 55. Rf7 {[%clk 0:00:03.9]} 1-0

[Event "*** Titled Tuesday Blitz"]
[Site "Chess.com"]
[Date "2021.02.09"]
[Round "1"]
[White "Problematique_99"]
[Black "JiiHart"]
[Result "1/2-1/2"]
[WhiteElo "2478"]
[BlackElo "2096"]
[TimeControl "180+1"]
[EndTime "10:08:24 PST"]
[Termination "Game drawn - timeout vs insufficient material"]

1. e4 {[%clk 0:03:00.9]} 1... c5 {[%clk 0:02:59.2]} 2. Nc3 {[%clk 0:02:59]} 2...
Nc6 {[%clk 0:02:58.9]} 3. f4 {[%clk 0:02:59]} 3... e6 {[%clk 0:02:57.4]} 4. Nf3
{[%clk 0:02:59.3]} 4... d5 {[%clk 0:02:57]} 5. Bb5 {[%clk 0:02:58.8]} 5... Be7
{[%clk 0:02:49.6]} 6. O-O {[%clk 0:02:56.2]} 6... h5 {[%clk 0:02:43.4]} 7. Ne5
{[%clk 0:02:49.6]} 7... Bd7 {[%clk 0:02:17.9]} 8. Bxc6 {[%clk 0:02:42.7]} 8...
Bxc6 {[%clk 0:02:12.2]} 9. f5 {[%clk 0:02:36.7]} 9... exf5 {[%clk 0:01:58.8]}
10. Rxf5 {[%clk 0:02:20.4]} 10... Nf6 {[%clk 0:01:58.2]} 11. Nxc6 {[%clk
0:01:55.1]} 11... bxc6 {[%clk 0:01:56.1]} 12. e5 {[%clk 0:01:53.8]} 12... Ng4
{[%clk 0:01:30]} 13. h3 {[%clk 0:01:43.1]} 13... Nh6 {[%clk 0:01:03]} 14. Rf1
{[%clk 0:01:34.6]} 14... Qd7 {[%clk 0:01:01.9]} 15. Qxh5 {[%clk 0:01:30.2]}
15... O-O-O {[%clk 0:01:01.4]} 16. Qe2 {[%clk 0:01:28.3]} 16... g6 {[%clk
0:00:56.8]} 17. Qa6+ {[%clk 0:01:23.8]} 17... Kb8 {[%clk 0:00:53]} 18. d3 {[%clk
0:01:22.3]} 18... Nf5 {[%clk 0:00:51.2]} 19. Bf4 {[%clk 0:01:21]} 19... Ka8
{[%clk 0:00:46.6]} 20. Na4 {[%clk 0:01:15]} 20... Qb7 {[%clk 0:00:37.3]} 21.
Qxb7+ {[%clk 0:01:13.5]} 21... Kxb7 {[%clk 0:00:38.2]} 22. Rae1 {[%clk
0:01:12.1]} 22... Nd4 {[%clk 0:00:37.5]} 23. c3 {[%clk 0:01:06.1]} 23... Ne6
{[%clk 0:00:37.5]} 24. Be3 {[%clk 0:01:06.4]} 24... Rh4 {[%clk 0:00:34.9]} 25.
Rxf7 {[%clk 0:01:02.7]} 25... Rd7 {[%clk 0:00:20.4]} 26. b3 {[%clk 0:00:43.4]}
26... d4 {[%clk 0:00:20.4]} 27. Bf2 {[%clk 0:00:37.9]} 27... Rf4 {[%clk
0:00:17]} 28. Rxf4 {[%clk 0:00:32.4]} 28... Nxf4 {[%clk 0:00:17.9]} 29. cxd4
{[%clk 0:00:29.2]} 29... cxd4 {[%clk 0:00:17.3]} 30. Re4 {[%clk 0:00:25]} 30...
Nxd3 {[%clk 0:00:16.8]} 31. Rxd4 {[%clk 0:00:25.4]} 31... Rxd4 {[%clk
0:00:16.6]} 32. Bxd4 {[%clk 0:00:25.9]} 32... a5 {[%clk 0:00:15]} 33. Kf1 {[%clk
0:00:20.5]} 33... c5 {[%clk 0:00:15.3]} 34. Bc3 {[%clk 0:00:17.7]} 34... Kc6
{[%clk 0:00:15.9]} 35. Bxa5 {[%clk 0:00:16.3]} 35... Kd5 {[%clk 0:00:16.8]} 36.
Bc3 {[%clk 0:00:16.3]} 36... Nxe5 {[%clk 0:00:16.4]} 37. Bxe5 {[%clk 0:00:17.2]}
37... Kxe5 {[%clk 0:00:17]} 38. Ke2 {[%clk 0:00:17.3]} 38... Kd4 {[%clk
0:00:17]} 39. Nb6 {[%clk 0:00:15.8]} 39... Bf6 {[%clk 0:00:14.9]} 40. a4 {[%clk
0:00:14.5]} 40... Kc3 {[%clk 0:00:14.9]} 41. Nd5+ {[%clk 0:00:14.1]} 41... Kxb3
{[%clk 0:00:14.3]} 42. Nxf6 {[%clk 0:00:14.5]} 42... Kxa4 {[%clk 0:00:15]} 43.
Ne4 {[%clk 0:00:13.7]} 43... c4 {[%clk 0:00:14.5]} 44. Kd2 {[%clk 0:00:13.9]}
44... Kb5 {[%clk 0:00:14.8]} 45. Kc3 {[%clk 0:00:10.1]} 45... Kc6 {[%clk
0:00:13.9]} 46. Kxc4 {[%clk 0:00:11]} 46... Kd7 {[%clk 0:00:14.2]} 47. Kd4
{[%clk 0:00:11.3]} 47... Ke6 {[%clk 0:00:14.7]} 48. g4 {[%clk 0:00:11.6]} 48...
Kf7 {[%clk 0:00:13.7]} 49. Ke5 {[%clk 0:00:11.8]} 49... Kg7 {[%clk 0:00:13.4]}
50. Kf4 {[%clk 0:00:11.9]} 50... Kf7 {[%clk 0:00:13.2]} 51. Kg5 {[%clk 0:00:12]}
51... Kg7 {[%clk 0:00:12.7]} 52. Nd6 {[%clk 0:00:11.8]} 52... Kh7 {[%clk
0:00:10.8]} 53. Kf6 {[%clk 0:00:12]} 53... Kh6 {[%clk 0:00:10.8]} 54. Nf7+
{[%clk 0:00:12.4]} 54... Kh7 {[%clk 0:00:09.9]} 55. g5 {[%clk 0:00:10.9]} 55...
Kg8 {[%clk 0:00:09.2]} 56. Kxg6 {[%clk 0:00:10.3]} 56... Kf8 {[%clk 0:00:09.3]}
57. Nh6 {[%clk 0:00:08.3]} 57... Ke7 {[%clk 0:00:09]} 1/2-1/2

[Event "*** Titled Tuesday Blitz"]
[Site "Chess.com"]
[Date "2021.02.09"]
[Round "1"]
[White "JSMastropiero"]
[Black "Gloomy_Wanderer"]
[Result "1-0"]
[WhiteElo "2417"]
[BlackElo "2718"]
[TimeControl "180+1"]
[EndTime "10:08:25 PST"]
[Termination "JSMastropiero won by resignation"]

1. e4 {[%clk 0:02:57.9]} 1... c5 {[%clk 0:02:59.8]} 2. Nc3 {[%clk 0:02:56.8]}
2... a6 {[%clk 0:02:59.5]} 3. Nf3 {[%clk 0:02:54.8]} 3... e6 {[%clk 0:02:59.3]}
4. g3 {[%clk 0:02:51.6]} 4... b5 {[%clk 0:02:59.3]} 5. Bg2 {[%clk 0:02:50.2]}
5... Bb7 {[%clk 0:02:59.4]} 6. d3 {[%clk 0:02:49.3]} 6... Nf6 {[%clk 0:02:58.7]}
7. O-O {[%clk 0:02:49]} 7... d5 {[%clk 0:02:58.7]} 8. exd5 {[%clk 0:02:46.6]}
8... Nxd5 {[%clk 0:02:58.9]} 9. Nxd5 {[%clk 0:02:43]} 9... Bxd5 {[%clk
0:02:57.5]} 10. a4 {[%clk 0:02:42.4]} 10... Nd7 {[%clk 0:02:53.4]} 11. Re1
{[%clk 0:02:40.1]} 11... Be7 {[%clk 0:02:52.1]} 12. Nd2 {[%clk 0:02:36.6]} 12...
Nb6 {[%clk 0:02:40.2]} 13. axb5 {[%clk 0:02:32.1]} 13... axb5 {[%clk 0:02:17]}
14. Rxa8 {[%clk 0:02:31.5]} 14... Qxa8 {[%clk 0:02:17.9]} 15. Bxd5 {[%clk
0:02:30.8]} 15... Qxd5 {[%clk 0:02:18.7]} 16. Qf3 {[%clk 0:02:26.8]} 16... Qxf3
{[%clk 0:02:17]} 17. Nxf3 {[%clk 0:02:26.1]} 17... O-O {[%clk 0:02:17.9]} 18.
Be3 {[%clk 0:02:03.1]} 18... Ra8 {[%clk 0:02:15]} 19. Ne5 {[%clk 0:02:02.3]}
19... Nd5 {[%clk 0:02:09.8]} 20. Nc6 {[%clk 0:01:55.4]} 20... Bd6 {[%clk
0:01:57.1]} 21. c4 {[%clk 0:01:44.7]} 21... Nxe3 {[%clk 0:01:45.7]} 22. Rxe3
{[%clk 0:01:43.8]} 22... bxc4 {[%clk 0:01:39.4]} 23. dxc4 {[%clk 0:01:43.3]}
23... Ra6 {[%clk 0:01:39]} 24. Ne5 {[%clk 0:01:40.9]} 24... Kf8 {[%clk
0:01:18.5]} 25. Nd3 {[%clk 0:01:26.1]} 25... Ke7 {[%clk 0:01:11.7]} 26. Kg2
{[%clk 0:01:24.2]} 26... g5 {[%clk 0:01:11.2]} 27. b4 {[%clk 0:01:16.1]} 27...
Ra4 {[%clk 0:00:41.8]} 28. bxc5 {[%clk 0:01:12.3]} 28... Bc7 {[%clk 0:00:41.3]}
29. Ne5 {[%clk 0:00:50.3]} 29... f6 {[%clk 0:00:27.9]} 30. Nc6+ {[%clk
0:00:44.7]} 30... Kd7 {[%clk 0:00:21.6]} 31. Nd4 {[%clk 0:00:44.2]} 31... e5
{[%clk 0:00:21.8]} 32. c6+ {[%clk 0:00:41.3]} 32... Kc8 {[%clk 0:00:18.8]} 33.
Nf5 {[%clk 0:00:26.8]} 33... Rxc4 {[%clk 0:00:15.2]} 34. Rd3 {[%clk 0:00:26.5]}
34... Kb8 {[%clk 0:00:10.7]} 35. Rd7 {[%clk 0:00:25.6]} 35... Rxc6 {[%clk
0:00:10.2]} 36. Rxh7 {[%clk 0:00:24.9]} 36... e4 {[%clk 0:00:05.3]} 37. g4
{[%clk 0:00:22.8]} 37... Rc2 {[%clk 0:00:03.5]} 38. Re7 {[%clk 0:00:22.6]} 38...
Bb6 {[%clk 0:00:03.3]} 39. Rxe4 {[%clk 0:00:19]} 39... Rxf2+ {[%clk 0:00:03]}
40. Kg3 {[%clk 0:00:18.5]} 40... Rb2 {[%clk 0:00:03.7]} 41. Nd4 {[%clk
0:00:15.8]} 41... Bc7+ {[%clk 0:00:03.7]} 42. Kf3 {[%clk 0:00:13.9]} 42... Rxh2
{[%clk 0:00:03.7]} 43. Re6 {[%clk 0:00:10.8]} 43... Rh3+ {[%clk 0:00:02.9]} 44.
Ke4 {[%clk 0:00:10.7]} 44... Be5 {[%clk 0:00:01.7]} 45. Nc6+ {[%clk 0:00:10.2]}
45... Kc8 {[%clk 0:00:02.2]} 46. Nxe5 {[%clk 0:00:10.4]} 46... fxe5 {[%clk
0:00:03.1]} 47. Rxe5 {[%clk 0:00:10.8]} 47... Kd7 {[%clk 0:00:03.1]} 48. Kf5
{[%clk 0:00:10.3]} 48... Rh8 {[%clk 0:00:02.2]} 49. Kxg5 {[%clk 0:00:09.9]}
49... Rg8+ {[%clk 0:00:02.7]} 50. Kf5 {[%clk 0:00:10.2]} 50... Rf8+ {[%clk
0:00:02.9]} 51. Ke4 {[%clk 0:00:08.3]} 51... Rf1 {[%clk 0:00:01.9]} 52. g5
{[%clk 0:00:07.5]} 52... Re1+ {[%clk 0:00:01.8]} 53. Kf5 {[%clk 0:00:07.3]}
53... Rf1+ {[%clk 0:00:01.8]} 54. Kg6 {[%clk 0:00:07.3]} 54... Rf8 {[%clk
0:00:01.4]} 55. Re2 {[%clk 0:00:07.7]} 55... Rf1 {[%clk 0:00:01.7]} 56. Kg7
{[%clk 0:00:07.6]} 56... Kd6 {[%clk 0:00:02.1]} 57. g6 {[%clk 0:00:07.8]} 57...
Kd7 {[%clk 0:00:02.6]} 58. Kg8 {[%clk 0:00:08]} 58... Rg1 {[%clk 0:00:03.1]} 59.
g7 {[%clk 0:00:08.2]} 59... Kd6 {[%clk 0:00:03.8]} 60. Re4 {[%clk 0:00:08.3]}
60... Kd5 {[%clk 0:00:02.7]} 61. Rh4 {[%clk 0:00:08]} 1-0

[Event "*** Titled Tuesday Blitz"]
[Site "Chess.com"]
[Date "2021.02.09"]
[Round "1"]
[White "Yurovskykh_Oleksandr"]
[Black "WonderChampion"]
[Result "1-0"]
[WhiteElo "2483"]
[BlackElo "2058"]
[TimeControl "180+1"]
[EndTime "10:08:30 PST"]
[Termination "Yurovskykh_Oleksandr won by resignation"]

1. d4 {[%clk 0:03:00.5]} 1... d5 {[%clk 0:02:58.8]} 2. Bf4 {[%clk 0:03:00.2]}
2... Nf6 {[%clk 0:02:56.4]} 3. e3 {[%clk 0:03:00.4]} 3... e6 {[%clk 0:02:55]} 4.
Nf3 {[%clk 0:02:59.8]} 4... c5 {[%clk 0:02:50.5]} 5. c3 {[%clk 0:02:59.7]} 5...
Nc6 {[%clk 0:02:50.1]} 6. Nbd2 {[%clk 0:02:59.7]} 6... Be7 {[%clk 0:02:49]} 7.
Bd3 {[%clk 0:02:55]} 7... O-O {[%clk 0:02:47.8]} 8. Qe2 {[%clk 0:02:53.5]} 8...
a6 {[%clk 0:02:46.9]} 9. Rd1 {[%clk 0:02:52]} 9... c4 {[%clk 0:02:46.5]} 10. Bb1
{[%clk 0:02:45.1]} 10... b5 {[%clk 0:02:46.2]} 11. e4 {[%clk 0:02:33.7]} 11...
b4 {[%clk 0:02:39.2]} 12. e5 {[%clk 0:02:32.2]} 12... Nd7 {[%clk 0:02:38.6]} 13.
h4 {[%clk 0:02:27.4]} 13... h6 {[%clk 0:02:37.4]} 14. Qe3 {[%clk 0:02:25.8]}
14... bxc3 {[%clk 0:02:31.1]} 15. bxc3 {[%clk 0:02:24.6]} 15... f6 {[%clk
0:02:25.3]} 16. exf6 {[%clk 0:01:48.2]} 16... Nxf6 {[%clk 0:02:26.2]} 17. g3
{[%clk 0:01:47.6]} 17... Ng4 {[%clk 0:02:19.9]} 18. Qe2 {[%clk 0:01:47.1]} 18...
Bd6 {[%clk 0:02:17.5]} 19. Bxd6 {[%clk 0:01:45.7]} 19... Qxd6 {[%clk 0:02:18.4]}
20. O-O {[%clk 0:01:45.7]} 20... e5 {[%clk 0:02:13.7]} 21. dxe5 {[%clk 0:01:45]}
21... Ncxe5 {[%clk 0:02:14.6]} 22. Nxe5 {[%clk 0:01:26.7]} 22... Nxe5 {[%clk
0:02:15.5]} 23. f4 {[%clk 0:01:27.1]} 23... Qc5+ {[%clk 0:02:07.2]} 24. Qf2
{[%clk 0:01:26.3]} 24... Qxf2+ {[%clk 0:02:06.2]} 25. Rxf2 {[%clk 0:01:24.8]}
25... Ng4 {[%clk 0:02:06]} 26. Re2 {[%clk 0:01:25.2]} 26... Bf5 {[%clk
0:02:00.2]} 27. Bxf5 {[%clk 0:01:18.3]} 27... Rxf5 {[%clk 0:02:01.1]} 28. Nf3
{[%clk 0:01:18.9]} 28... Rd8 {[%clk 0:01:58.3]} 29. Nd4 {[%clk 0:01:18]} 29...
Rf6 {[%clk 0:01:57.2]} 30. Rb1 {[%clk 0:01:16.2]} 30... h5 {[%clk 0:01:53.8]}
31. Rb7 {[%clk 0:01:15.9]} 31... Nh6 {[%clk 0:01:43.5]} 32. Ree7 {[%clk
0:01:14.9]} 32... Rf7 {[%clk 0:01:41.8]} 33. Rxf7 {[%clk 0:00:42.8]} 33... Nxf7
{[%clk 0:01:42.7]} 34. Rb6 {[%clk 0:00:33.6]} 34... Ra8 {[%clk 0:01:37.8]} 35.
Kf2 {[%clk 0:00:29.7]} 35... a5 {[%clk 0:01:25.4]} 36. a4 {[%clk 0:00:29.1]}
36... Kf8 {[%clk 0:01:10.4]} 37. Rb5 {[%clk 0:00:28.6]} 37... Nd6 {[%clk
0:01:04.2]} 38. Rxd5 {[%clk 0:00:25.2]} 38... Ne4+ {[%clk 0:01:01.3]} 39. Kf3
{[%clk 0:00:25]} 39... Nxc3 {[%clk 0:01:00.7]} 40. Rc5 {[%clk 0:00:25.1]} 40...
Nxa4 {[%clk 0:00:58.5]} 41. Rxc4 {[%clk 0:00:25.4]} 41... Nb6 {[%clk 0:00:57.9]}
42. Rc6 {[%clk 0:00:25.8]} 42... Nd5 {[%clk 0:00:56.4]} 43. Rc5 {[%clk
0:00:20.4]} 43... Nf6 {[%clk 0:00:54]} 44. Ne6+ {[%clk 0:00:20.7]} 44... Kf7
{[%clk 0:00:52.7]} 45. Ng5+ {[%clk 0:00:20.4]} 45... Kg8 {[%clk 0:00:51.4]} 46.
Rc3 {[%clk 0:00:20.2]} 46... a4 {[%clk 0:00:50.6]} 47. Ra3 {[%clk 0:00:20.8]}
47... Nd5 {[%clk 0:00:48.4]} 48. Ne6 {[%clk 0:00:20.3]} 48... Nb4 {[%clk
0:00:44.7]} 49. Nc5 {[%clk 0:00:19]} 49... Nc2 {[%clk 0:00:36]} 50. Rxa4 {[%clk
0:00:17.3]} 50... Rc8 {[%clk 0:00:32.2]} 51. Nd3 {[%clk 0:00:13.3]} 51... Rc3
{[%clk 0:00:29.4]} 52. Ke2 {[%clk 0:00:11.9]} 52... Rc8 {[%clk 0:00:25.2]} 53.
Kd2 {[%clk 0:00:11.7]} 53... Kf7 {[%clk 0:00:19.6]} 54. Ra7+ {[%clk 0:00:11.5]}
54... Kg8 {[%clk 0:00:19.1]} 55. Ra5 {[%clk 0:00:10.3]} 55... g6 {[%clk
0:00:16.8]} 56. Rg5 {[%clk 0:00:09.9]} 56... Kg7 {[%clk 0:00:16.9]} 57. Ne5
{[%clk 0:00:10.3]} 57... Rd8+ {[%clk 0:00:14.5]} 58. Kxc2 {[%clk 0:00:10.3]}
58... Rd6 {[%clk 0:00:14.7]} 59. Rxg6+ {[%clk 0:00:10.6]} 59... Rxg6 {[%clk
0:00:15.3]} 60. Nxg6 {[%clk 0:00:11.5]} 60... Kxg6 {[%clk 0:00:16.2]} 61. Kd3
{[%clk 0:00:12.4]} 61... Kf5 {[%clk 0:00:16.8]} 62. Ke3 {[%clk 0:00:12.9]} 62...
Kg4 {[%clk 0:00:16.4]} 63. Kf2 {[%clk 0:00:13.4]} 63... Kf5 {[%clk 0:00:16.4]}
64. Kf3 {[%clk 0:00:14.3]} 64... Kf6 {[%clk 0:00:16.9]} 65. g4 {[%clk
0:00:15.2]} 65... hxg4+ {[%clk 0:00:16.8]} 66. Kxg4 {[%clk 0:00:16.1]} 66... Kg6
{[%clk 0:00:17.7]} 67. h5+ {[%clk 0:00:17]} 67... Kh6 {[%clk 0:00:18.6]} 68. Kh4
{[%clk 0:00:17.6]} 68... Kg7 {[%clk 0:00:18.9]} 69. Kg5 {[%clk 0:00:18.5]} 69...
Kh7 {[%clk 0:00:19.8]} 70. f5 {[%clk 0:00:19.4]} 70... Kg7 {[%clk 0:00:20]} 71.
f6+ {[%clk 0:00:20.3]} 71... Kf7 {[%clk 0:00:20.9]} 72. Kf5 {[%clk 0:00:21.2]}
1-0

[Event "*** Titled Tuesday Blitz"]
[Site "Chess.com"]
[Date "2021.02.09"]
[Round "1"]
[White "xberli"]
[Black "jefferyx"]
[Result "0-1"]
[WhiteElo "2462"]
[BlackElo "2990"]
[TimeControl "180+1"]
[EndTime "10:08:31 PST"]
[Termination "jefferyx won by resignation"]

1. Nf3 {[%clk 0:02:57.5]} 1... g6 {[%clk 0:02:59]} 2. g3 {[%clk 0:02:55.9]} 2...
Bg7 {[%clk 0:02:59.1]} 3. Bg2 {[%clk 0:02:56.4]} 3... d6 {[%clk 0:03:00]} 4. O-O
{[%clk 0:02:56.6]} 4... Nc6 {[%clk 0:03:00.9]} 5. d4 {[%clk 0:02:55.5]} 5... Bd7
{[%clk 0:03:01.8]} 6. a4 {[%clk 0:02:55.3]} 6... Qc8 {[%clk 0:03:01.8]} 7. Re1
{[%clk 0:02:54.4]} 7... Bh3 {[%clk 0:03:01.5]} 8. Bh1 {[%clk 0:02:54.3]} 8... h5
{[%clk 0:03:01.8]} 9. d5 {[%clk 0:02:41.2]} 9... Ne5 {[%clk 0:03:01.5]} 10. Nbd2
{[%clk 0:02:37.5]} 10... Ng4 {[%clk 0:02:42.8]} 11. Ng5 {[%clk 0:02:23.6]} 11...
h4 {[%clk 0:02:42.8]} 12. Nxh3 {[%clk 0:02:18.7]} 12... hxg3 {[%clk 0:02:42.6]}
13. hxg3 {[%clk 0:02:09.8]} 13... Rxh3 {[%clk 0:02:41.6]} 14. Bg2 {[%clk
0:02:09.2]} 14... Rxg3 {[%clk 0:02:41.7]} 15. Ne4 {[%clk 0:01:43.8]} 15... Rxg2+
{[%clk 0:02:40.3]} 16. Kxg2 {[%clk 0:01:44.7]} 16... Qd7 {[%clk 0:02:33.2]} 17.
Ng3 {[%clk 0:01:29]} 17... O-O-O {[%clk 0:02:29]} 18. e4 {[%clk 0:01:22]} 18...
N8f6 {[%clk 0:02:26.6]} 19. Rh1 {[%clk 0:01:17.1]} 19... e6 {[%clk 0:02:25]} 20.
Bg5 {[%clk 0:01:02.6]} 20... Re8 {[%clk 0:02:24.7]} 21. dxe6 {[%clk 0:00:49.6]}
21... Qxe6 {[%clk 0:02:24.4]} 22. Qf3 {[%clk 0:00:47.2]} 22... Nd7 {[%clk
0:02:07.6]} 23. Qb3 {[%clk 0:00:36.7]} 23... Qxb3 {[%clk 0:01:58.9]} 24. cxb3
{[%clk 0:00:36.1]} 24... Bxb2 {[%clk 0:01:59.8]} 25. Rab1 {[%clk 0:00:34.3]}
25... Bd4 {[%clk 0:02:00.1]} 26. Rbf1 {[%clk 0:00:22.8]} 26... Nc5 {[%clk
0:01:57.7]} 27. f3 {[%clk 0:00:20.2]} 27... Ne3+ {[%clk 0:01:38]} 28. Bxe3
{[%clk 0:00:18.1]} 28... Bxe3 {[%clk 0:01:38.9]} 29. Rb1 {[%clk 0:00:16.9]}
29... Kd7 {[%clk 0:01:28.7]} 30. Rh7 {[%clk 0:00:16.6]} 30... Re7 {[%clk
0:01:26.2]} 31. Ne2 {[%clk 0:00:14.6]} 31... Bd2 {[%clk 0:01:10.2]} 32. Nd4
{[%clk 0:00:10.8]} 32... a5 {[%clk 0:01:09.1]} 33. Kf2 {[%clk 0:00:10.4]} 33...
c6 {[%clk 0:01:05]} 34. Ke2 {[%clk 0:00:10]} 34... Bc3 {[%clk 0:01:05.4]} 35.
Nc2 {[%clk 0:00:10.2]} 35... d5 {[%clk 0:01:04.3]} 36. Ne3 {[%clk 0:00:08.9]}
36... dxe4 {[%clk 0:01:03.6]} 37. fxe4 {[%clk 0:00:09.8]} 37... Nxe4 {[%clk
0:01:03.7]} 38. Kd3 {[%clk 0:00:10]} 38... Bb4 {[%clk 0:00:58.2]} 39. Nc4 {[%clk
0:00:09.6]} 39... Kc7 {[%clk 0:00:56.6]} 40. Kc2 {[%clk 0:00:08.8]} 40... Nc5
{[%clk 0:00:53.5]} 41. Rf1 {[%clk 0:00:07.9]} 41... Kb8 {[%clk 0:00:36.5]} 42.
Rfxf7 {[%clk 0:00:07.4]} 42... Re2+ {[%clk 0:00:37]} 43. Kd1 {[%clk 0:00:07.1]}
43... Re1+ {[%clk 0:00:36.8]} 44. Kc2 {[%clk 0:00:06.9]} 44... Rg1 {[%clk
0:00:31.4]} 45. Rh8+ {[%clk 0:00:06.6]} 45... Ka7 {[%clk 0:00:31.4]} 46. Rff8
{[%clk 0:00:06.8]} 46... Rg2+ {[%clk 0:00:29.6]} 47. Kd1 {[%clk 0:00:07.1]}
47... Rg1+ {[%clk 0:00:24.1]} 48. Ke2 {[%clk 0:00:06.9]} 48... Re1+ {[%clk
0:00:24]} 49. Kf3 {[%clk 0:00:06.3]} 49... Rf1+ {[%clk 0:00:24.2]} 50. Kg2
{[%clk 0:00:06.4]} 50... Rxf8 {[%clk 0:00:25.1]} 51. Rxf8 {[%clk 0:00:06.7]}
51... Nxb3 {[%clk 0:00:26]} 52. Rg8 {[%clk 0:00:06.5]} 52... Nc5 {[%clk
0:00:25.2]} 53. Rxg6 {[%clk 0:00:06.1]} 53... Nxa4 {[%clk 0:00:25.3]} 54. Rg5
{[%clk 0:00:05.1]} 54... Ka6 {[%clk 0:00:25.3]} 55. Kf3 {[%clk 0:00:04.8]} 55...
Nc3 {[%clk 0:00:25.1]} 56. Ne3 {[%clk 0:00:05.4]} 56... a4 {[%clk 0:00:25.1]}
57. Nc2 {[%clk 0:00:05.8]} 57... c5 {[%clk 0:00:25.1]} 58. Ke3 {[%clk
0:00:05.7]} 58... a3 {[%clk 0:00:25.2]} 59. Kd3 {[%clk 0:00:05.7]} 59... a2
{[%clk 0:00:25.7]} 60. Na1 {[%clk 0:00:05.4]} 60... b5 {[%clk 0:00:24.1]} 61.
Rg6+ {[%clk 0:00:05.2]} 61... Ka5 {[%clk 0:00:23.7]} 62. Kc2 {[%clk 0:00:05.8]}
62... c4 {[%clk 0:00:15]} 63. Kb2 {[%clk 0:00:05.9]} 63... Ka4 {[%clk
0:00:14.9]} 64. Ra6+ {[%clk 0:00:05]} 64... Ba5 {[%clk 0:00:12.9]} 65. Rxa5+
{[%clk 0:00:05.3]} 65... Kxa5 {[%clk 0:00:13.8]} 66. Kxc3 {[%clk 0:00:05.9]}
66... Ka4 {[%clk 0:00:10.9]} 67. Kb2 {[%clk 0:00:06.2]} 67... b4 {[%clk
0:00:11.3]} 68. Kxa2 {[%clk 0:00:06.6]} 68... c3 {[%clk 0:00:12]} 69. Nb3 {[%clk
0:00:06]} 69... Kb5 {[%clk 0:00:12.7]} 70. Nc1 {[%clk 0:00:05.7]} 70... Kc4
{[%clk 0:00:13.6]} 71. Kb1 {[%clk 0:00:06.1]} 71... b3 {[%clk 0:00:13.6]} 72.
Nxb3 {[%clk 0:00:06]} 72... Kxb3 {[%clk 0:00:14.5]} 73. Kc1 {[%clk 0:00:06.5]}
73... c2 {[%clk 0:00:14.9]} 74. Kd2 {[%clk 0:00:06.6]} 74... Kb2 {[%clk
0:00:15.8]} 75. Kd3 {[%clk 0:00:06.5]} 75... c1=Q {[%clk 0:00:16.7]} 0-1